bitfinex/quotes_SOLUSD_20241101
["timestamp","ask_amount","ask_price","bid_price","bid_amount"]
[1730478929663,27.80188084,166.7,166.64,27.80188084]
[1730478929863,33.80068084,166.7,166.64,27.80188084]
[1730478930469,27.80188084,166.69,166.64,27.80188084]
[1730478931580,27.80188084,166.69,166.64,33.80258084]
[1730478931971,27.80188084,166.68,166.64,6.0007]
[1730478932170,27.80188084,166.67,166.63,6.0013]
[1730478932384,27.80188084,166.64,166.59,15.0068]
[1730478932681,27.80188084,166.6,166.56,21.0133]
[1730478932884,27.80188084,166.59,166.56,15.0095]
[1730478933087,27.80188084,166.59,166.55,6.0041]
[1730478933782,27.80188084,166.61,166.56,27.80188084]
[1730478933992,27.80188084,166.62,166.57,27.80188084]
[1730478934161,27.80188084,166.62,166.56,27.80188084]
[1730478934576,27.80188084,166.6,166.55,48.81648084]
[1730478935285,33.80428084,166.6,166.55,21.0146]
[1730478935582,27.80188084,166.57,166.52,27.80188084]
[1730478935792,27.80188084,166.57,166.52,21.0182]
[1730478936276,27.80188084,166.55,166.51,6.26524592]
[1730478936484,6.0024,166.6,166.45,36.3924]
[1730478936485,27.80188084,166.52,166.48,15.0161]
[1730478936691,27.80188084,166.52,166.48,21.0224]
[1730478936862,27.80188084,166.51,166.46,27.80188084]
[1730478937178,27.80188084,166.5,166.46,6.0074]
[1730478937376,27.80188084,166.54,166.48,27.80188084]
[1730478937581,23.776884,166.55,166.51,27.80188084]
[1730478937780,27.80188084,166.56,166.5,27.80188084]
[1730478938262,27.80188084,166.52,166.47,27.80188084]
[1730478938874,27.80188084,166.53,166.47,27.80188084]
[1730478939082,27.80188084,166.51,166.47,6.0068]
[1730478939392,27.80188084,166.48,166.44,12.26082165]
[1730478939693,27.80188084,166.47,166.42,48.83178084]
[1730478939892,27.80188084,166.48,166.42,48.83178084]
[1730478940497,23.776884,166.5,166.42,48.83178084]
[1730478940498,23.776884,166.5,166.46,27.80188084]
[1730478940787,51.57876484,166.5,166.44,27.80188084]
[1730478941090,23.776884,166.5,166.46,6.0074]
[1730478941583,51.57876484,166.52,166.47,27.80188084]
[1730478941988,23.776884,166.52,166.47,27.80188084]
[1730478942285,23.776884,166.52,166.46,21.026]
[1730478942286,27.80188084,166.5,166.46,15.0186]
[1730478942488,27.80188084,166.5,166.45,27.80188084]
[1730478942691,23.776884,166.5,166.46,27.80188084]
[1730478943085,27.80188084,166.52,166.47,21.0247]
[1730478943387,23.776884,166.51,166.47,48.82658084]
[1730478943569,27.80188084,166.49,166.47,15.0177]
[1730478943766,27.80188084,166.5,166.47,15.0177]
[1730478944188,51.57876484,166.51,166.47,15.0177]
[1730478944502,23.776884,166.51,166.47,21.0247]
[1730478945076,27.80188084,166.52,166.47,48.82658084]
[1730478945389,27.80188084,166.52,166.43,6.24959682]
[1730478945390,23.776884,166.44,166.43,6.24959682]
[1730478945593,23.776884,166.44,166.4,0.6134955]
[1730478945594,16.5682,166.41,166.4,0.6134955]
[1730478945898,23.776884,166.4,166.27,6.1435]
[1730478946190,20.0,166.37,166.26,6.24599254]
[1730478946377,20.0,166.39,166.24,0.6134955]
[1730478946378,27.80188084,166.28,166.24,0.6134955]
[1730478946577,45.17754956,166.28,166.24,0.6134955]
[1730478946979,45.17754956,166.32,166.26,45.17754956]
[1730478947191,6.0114,166.35,166.25,66.22994956]
[1730478947388,45.17754956,166.3,166.25,66.22994956]
[1730478947592,45.17754956,166.3,166.25,21.0524]
[1730478947893,45.17754956,166.3,166.25,66.22994956]
[1730478948097,45.17754956,166.27,166.24,0.6134955]
[1730478948992,45.17754956,166.28,166.24,0.6134955]
[1730478949300,45.17754956,166.29,166.24,21.6671955]
[1730478950103,45.17754956,166.29,166.24,66.84474506]
[1730478950271,45.17754956,166.25,166.24,0.6134955]
[1730478950680,68.95443356,166.25,166.24,0.6134955]
[1730478951890,74.96943356,166.25,166.24,0.6134955]
[1730478952596,120.14698312,166.25,166.24,0.6134955]
[1730478952804,74.96943356,166.25,166.24,0.6134955]
[1730478953504,120.14698312,166.25,166.24,0.6134955]
[1730478953796,68.95443356,166.25,166.24,0.6134955]
[1730478954297,74.96943356,166.25,166.24,0.6134955]
[1730478955498,45.17754956,166.25,166.24,0.6134955]
[1730478956897,74.96943356,166.25,166.24,0.6134955]
[1730478957095,120.14698312,166.25,166.24,0.6134955]
[1730478957401,74.96943356,166.25,166.24,0.6134955]
[1730478958695,68.95443356,166.25,166.24,0.6134955]
[1730478960094,74.96943356,166.25,166.24,0.6134955]
[1730478961206,120.14698312,166.25,166.24,0.6134955]
[1730478961602,74.96943356,166.25,166.24,0.6134955]
[1730478962409,120.14698312,166.25,166.24,0.6134955]
[1730478964087,74.96943356,166.25,166.24,0.6134955]
[1730478964282,45.17754956,166.25,166.24,0.6134955]
[1730478964489,45.17754956,166.26,166.24,0.6134955]
[1730478965112,45.17754956,166.27,166.24,6.6287955]
[1730478965284,45.17754956,166.26,166.24,6.6287955]
[1730478965482,45.17754956,166.27,166.24,6.6287955]
[1730478965685,45.17754956,166.28,166.24,6.6287955]
[1730478965887,45.17754956,166.29,166.24,66.84474506]
[1730478966085,45.17754956,166.28,166.24,21.6671955]
[1730478966304,45.17754956,166.25,166.24,0.6134955]
[1730478967204,68.95443356,166.25,166.24,0.6134955]
[1730478967994,21.0449,166.31,166.24,0.6134955]
[1730478967995,45.17754956,166.26,166.24,0.6134955]
[1730478968599,27.8076806,166.26,166.24,0.6134955]
[1730478969211,23.776884,166.26,166.24,0.6134955]
[1730478969705,27.8076806,166.3,166.24,49.4748761]
[1730478970316,27.8076806,166.29,166.24,49.4748761]
[1730478970607,27.8076806,166.28,166.24,21.6671955]
[1730478970986,27.8076806,166.29,166.24,49.4748761]
[1730478971186,27.8076806,166.27,166.24,21.6671955]
[1730478971387,27.8076806,166.3,166.25,27.8076806]
[1730478971813,27.8076806,166.31,166.25,27.8076806]
[1730478972109,15.0261,166.38,166.24,21.6671955]
[1730478972110,27.8076806,166.32,166.27,27.8076806]
[1730478972495,27.8076806,166.32,166.28,21.0487]
[1730478972818,27.8076806,166.34,166.29,27.8076806]
[1730478973194,27.8076806,166.36,166.3,27.8076806]
[1730478973391,27.8076806,166.37,166.32,27.8076806]
[1730478973792,27.8076806,166.35,166.3,27.8076806]
[1730478973996,27.8076806,166.34,166.29,27.8076806]
[1730478974203,27.8076806,166.37,166.31,27.8076806]
[1730478974521,6.0096,166.4,166.33,27.8076806]
[1730478974522,27.8076806,166.38,166.33,27.8076806]
[1730478974891,27.8076806,166.39,166.33,27.8076806]
[1730478975311,27.8076806,166.39,166.29,21.0474]
[1730478975312,27.8076806,166.36,166.31,27.8076806]
[1730478975701,27.8076806,166.36,166.32,21.0437]
[1730478975905,27.8076806,166.34,166.32,15.0312]
[1730478976499,23.776884,166.36,166.32,42.8388806]
[1730478977113,27.8076806,166.35,166.32,15.0312]
[1730478977316,51.5845646,166.36,166.32,15.0312]
[1730478977622,27.8076806,166.34,166.29,42.8412806]
[1730478977919,27.8076806,166.32,166.29,21.0471]
[1730478978297,51.5845646,166.32,166.27,27.8076806]
[1730478978500,27.8076806,166.28,166.24,0.6134955]
[1730478978706,27.8076806,166.26,166.24,0.6134955]
[1730478979307,27.8076806,166.28,166.24,0.6134955]
[1730478979508,27.8076806,166.31,166.26,27.8076806]
[1730478979723,33.8203806,166.32,166.27,27.8076806]
[1730478979925,23.776884,166.31,166.27,27.8076806]
[1730478980304,51.5845646,166.31,166.26,48.8586806]
[1730478980624,51.5845646,166.32,166.27,27.8076806]
[1730478980822,23.776884,166.32,166.28,27.8076806]
[1730478981117,27.8076806,166.34,166.28,27.8076806]
[1730478981326,23.776884,166.34,166.3,27.8076806]
[1730478981710,23.776884,166.35,166.31,21.0449]
[1730478982025,6.0088,166.42,166.34,27.8076806]
[1730478982208,33.8164806,166.42,166.36,27.8076806]
[1730478982710,27.8076806,166.39,166.33,27.8076806]
[1730478982913,27.8076806,166.38,166.32,27.8076806]
[1730478983105,27.8076806,166.37,166.32,27.8076806]
[1730478983505,27.8076806,166.33,166.28,27.8076806]
[1730478983726,27.8076806,166.29,166.24,50.0712761]
[1730478984023,27.8076806,166.3,166.25,21.0525]
[1730478984323,27.8076806,166.3,166.25,48.8601806]
[1730478984559,23.776884,166.32,166.28,27.8076806]
[1730478984817,51.5845646,166.33,166.28,27.8076806]
[1730478985708,51.5845646,166.33,166.27,27.8076806]
[1730478986025,27.8076806,166.32,166.27,27.8076806]
[1730478986223,27.8076806,166.3,166.25,48.8601806]
[1730478986415,27.8076806,166.29,166.25,21.0525]
[1730478987205,27.8076806,166.3,166.25,21.0525]
[1730478987527,29.789284,166.33,166.25,21.0525]
[1730478987528,51.5845646,166.33,166.28,27.8076806]
[1730478987710,23.776884,166.34,166.29,27.8076806]
[1730478988020,27.8076806,166.36,166.3,27.8076806]
[1730478988232,27.8076806,166.36,166.31,27.8076806]
[1730478988441,27.8076806,166.34,166.29,27.8076806]
[1730478988619,27.8076806,166.34,166.28,27.8076806]
[1730478988819,27.8076806,166.31,166.26,27.8076806]
[1730478989130,6.0107,166.37,166.25,21.0525]
[1730478989131,27.8076806,166.3,166.25,21.0525]
[1730478989333,27.8076806,166.29,166.25,21.0525]
[1730478989935,6.0133,166.3,166.25,48.8601806]
[1730478990136,23.776884,166.3,166.26,27.8076806]
[1730478990328,23.776884,166.3,166.25,48.8601806]
[1730478990534,51.5845646,166.3,166.25,48.8601806]
[1730478991119,51.5845646,166.3,166.25,21.0525]
[1730478991319,23.776884,166.3,166.25,48.8601806]
[1730478991530,33.8201806,166.32,166.26,27.8076806]
[1730478991735,23.776884,166.32,166.27,27.8076806]
[1730478991936,33.8194806,166.34,166.28,27.8076806]
[1730478992137,33.8194806,166.34,166.25,21.0525]
[1730478992138,27.8076806,166.31,166.25,48.8601806]
[1730478992314,27.8076806,166.3,166.25,48.8601806]
[1730478992635,27.8076806,166.29,166.25,21.0525]
[1730478992825,27.8076806,166.28,166.25,15.0375]
[1730478993038,27.8076806,166.27,166.24,0.6134955]
[1730478993223,27.8076806,166.28,166.24,0.6134955]
[1730478993421,21.0412,166.34,166.25,27.8076806]
[1730478993422,27.8076806,166.3,166.25,27.8076806]
[1730478993718,27.8076806,166.28,166.24,21.6671955]
[1730478994627,51.5845646,166.3,166.25,27.8076806]
[1730478994825,27.8076806,166.29,166.25,6.0149]
[1730478995024,27.8076806,166.28,166.25,6.0149]
[1730478995222,57.5979646,166.3,166.25,6.0149]
[1730478995623,27.8076806,166.29,166.25,6.0149]
[1730478996228,27.8076806,166.27,166.24,0.6134955]
[1730478996418,27.8076806,166.26,166.24,0.6134955]
[1730478996830,27.8076806,166.28,166.24,0.6134955]
[1730478997018,33.8214806,166.29,166.24,28.4211761]
[1730478997224,57.5977646,166.3,166.25,27.8076806]
[1730478997522,27.8076806,166.29,166.24,28.4211761]
[1730478997726,57.5977646,166.3,166.24,28.4211761]
[1730478998232,29.790084,166.3,166.25,33.8225806]
[1730478998638,57.5977646,166.3,166.25,33.8225806]
[1730478999043,57.5977646,166.3,166.25,6.0149]
[1730478999224,27.8076806,166.28,166.24,6.6287955]
[1730478999426,27.8076806,166.29,166.24,34.4364761]
[1730478999719,27.8076806,166.29,166.24,49.4748761]
[1730478999914,57.5977646,166.3,166.24,49.4748761]
[1730479000115,27.8076806,166.29,166.24,21.6671955]
[1730479000429,27.8076806,166.27,166.24,0.6134955]
[1730479000731,27.8076806,166.26,166.24,0.6134955]
[1730479001233,27.8076806,166.27,166.24,0.6134955]
[1730479001441,29.790084,166.3,166.25,27.8076806]
[1730479001640,57.5977646,166.3,166.24,49.4748761]
[1730479001820,27.8076806,166.27,166.24,0.6134955]
[1730479003531,23.776884,166.27,166.24,21.6671955]
[1730479003843,23.776884,166.28,166.24,21.6671955]
[1730479004016,51.5845646,166.28,166.24,21.6671955]
[1730479004429,51.5845646,166.28,166.24,0.6134955]
[1730479004611,27.8076806,166.27,166.24,0.6134955]
[1730479004816,27.8076806,166.25,166.24,0.6134955]
[1730479005034,51.5845646,166.25,166.24,0.6134955]
[1730479005728,57.5995646,166.25,166.24,0.6134955]
[1730479006418,57.5995646,166.25,166.15,42.8536806]
[1730479006419,23.776884,166.24,166.12,42.8565806]
[1730479006617,27.8076806,166.22,166.16,27.8076806]
[1730479006840,23.776884,166.21,166.17,27.8076806]
[1730479008517,23.776884,166.21,166.17,33.8255806]
[1730479008733,23.776884,166.21,166.15,15.0463]
[1730479008734,29.793484,166.21,166.16,27.8076806]
[1730479009336,23.776884,166.22,166.18,27.8076806]
[1730479009542,23.776884,166.22,166.19,27.8076806]
[1730479009726,23.776884,166.23,166.18,27.8076806]
[1730479009928,27.8076806,166.23,166.18,27.8076806]
[1730479010621,22.471,166.26,166.15,15.0463]
[1730479010622,27.8076806,166.26,166.2,27.8076806]
[1730479010933,27.8076806,166.24,166.19,27.8076806]
[1730479011135,27.8076806,166.24,166.18,27.8076806]
[1730479011441,27.8076806,166.24,166.19,27.8076806]
[1730479011841,23.776884,166.24,166.19,33.8247806]
[1730479012143,27.8076806,166.24,166.19,33.8247806]
[1730479012324,23.776884,166.23,166.19,33.8247806]
[1730479012724,23.776884,166.26,166.19,33.8247806]
[1730479012725,27.8076806,166.28,166.22,27.8076806]
[1730479013550,27.8076806,166.26,166.21,27.8076806]
[1730479013845,27.8076806,166.28,166.22,27.8076806]
[1730479014342,27.8076806,166.26,166.21,33.8237806]
[1730479014558,21.0449,166.31,166.21,15.0412]
[1730479014559,51.5845646,166.25,166.21,15.0412]
[1730479014745,23.776884,166.26,166.21,48.8652806]
[1730479015048,51.5845646,166.26,166.21,48.8652806]
[1730479015225,23.776884,166.26,166.21,48.8652806]
[1730479016146,27.8076806,166.25,166.21,21.0576]
[1730479016345,57.5992646,166.26,166.21,48.8652806]
[1730479016524,29.791584,166.26,166.21,48.8652806]
[1730479017023,27.8076806,166.25,166.21,15.0412]
[1730479017222,27.8076806,166.25,166.19,27.8076806]
[1730479017223,51.5845646,166.23,166.18,42.8514806]
[1730479017443,27.8076806,166.24,166.18,42.8514806]
[1730479017645,23.776884,166.23,166.18,48.8689806]
[1730479018029,6.0161,166.22,166.18,42.8514806]
[1730479018223,51.5845646,166.23,166.18,48.8689806]
[1730479018533,29.792684,166.23,166.18,48.8689806]
[1730479019438,27.8076806,166.22,166.18,15.0438]
[1730479019945,51.5845646,166.21,166.15,42.8539806]
[1730479020147,51.5845646,166.22,166.16,27.8076806]
[1730479020946,23.776884,166.2,166.16,27.8076806]
[1730479021144,27.8076806,166.19,166.14,27.8076806]
[1730479021453,23.776884,166.16,166.12,27.8076806]
[1730479021628,23.776884,166.16,166.13,27.8076806]
[1730479021826,27.8076806,166.22,166.15,27.8076806]
[1730479022027,6.0127,166.32,166.21,27.8076806]
[1730479022357,6.0106,166.37,166.15,0.12549]
[1730479022548,51.0907,166.37,166.15,0.12549]
[1730479022724,81.1441,166.37,166.15,20.0]
[1730479022925,81.1441,166.37,166.17,20.0]
[1730479023125,27.8076806,166.27,166.21,27.8076806]
[1730479024353,23.776884,166.26,166.21,27.8076806]
[1730479024576,23.776884,166.24,166.19,27.8076806]
[1730479024856,23.776884,166.24,166.1,30.1023]
[1730479024857,51.5845646,166.24,166.18,27.8076806]
[1730479025046,23.776884,166.21,166.16,27.8076806]
[1730479025237,23.776884,166.19,166.14,27.8076806]
[1730479025638,51.5845646,166.19,166.14,27.8076806]
[1730479026056,23.776884,166.19,166.16,27.8076806]
[1730479026543,27.8076806,166.22,166.17,27.8076806]
[1730479026854,23.776884,166.21,166.17,27.8076806]
[1730479027248,23.776884,166.19,166.15,27.8076806]
[1730479027447,23.776884,166.19,166.16,27.8076806]
[1730479027757,23.776884,166.21,166.17,27.8076806]
[1730479028341,51.5845646,166.21,166.15,27.8076806]
[1730479028555,23.776884,166.18,166.13,27.8076806]
[1730479028774,57.6020646,166.18,166.12,27.8076806]
[1730479028971,29.794384,166.18,166.14,27.8076806]
[1730479030168,29.794384,166.18,166.13,27.8076806]
[1730479030464,23.776884,166.18,166.15,27.8076806]
[1730479030663,23.776884,166.19,166.16,27.8076806]
[1730479030843,51.5845646,166.19,166.14,27.8076806]
[1730479031043,23.776884,166.19,166.15,27.8076806]
[1730479031248,23.776884,166.19,166.16,27.8076806]
[1730479031449,23.776884,166.19,166.15,27.8076806]
[1730479031644,29.794284,166.19,166.16,27.8076806]
[1730479032080,29.794284,166.19,166.15,27.8076806]
[1730479032260,57.6019646,166.19,166.14,27.8076806]
[1730479032567,57.6019646,166.19,166.13,27.8076806]
[1730479032568,23.776884,166.17,166.13,27.8076806]
[1730479033766,23.776884,166.17,166.1,28.3906]
[1730479033767,23.776884,166.15,166.14,27.8076806]
[1730479034362,29.794784,166.17,166.14,27.8076806]
[1730479034555,27.8076806,166.21,166.15,27.8076806]
[1730479034861,23.776884,166.17,166.14,27.8076806]
[1730479035047,23.776884,166.17,166.13,27.8076806]
[1730479035668,23.776884,166.17,166.1,43.4417]
[1730479035669,29.795084,166.17,166.14,27.8076806]
[1730479035871,27.8076806,166.21,166.16,27.8076806]
[1730479036970,6.0168,166.2,166.16,27.8076806]
[1730479037274,23.776884,166.19,166.15,27.8076806]
[1730479037569,23.776884,166.15,166.11,27.8076806]
[1730479037768,51.5845646,166.15,166.1,34.05510443]
[1730479037956,23.776884,166.13,166.09,27.8076806]
[1730479038153,23.776884,166.13,166.07,15.6669955]
[1730479038154,23.776884,166.13,166.1,27.8076806]
[1730479038772,23.776884,166.14,166.1,27.8076806]
[1730479039068,23.776884,166.12,166.1,27.8076806]
[1730479039278,51.5845646,166.12,166.07,6.86446053]
[1730479039458,79.3922452,166.08,166.07,6.86446053]
[1730479039665,79.3922452,166.08,165.95,17.74232126]
[1730479039666,23.776884,166.07,165.95,17.74232126]
[1730479039970,23.776884,166.07,165.87,6.0923]
[1730479039971,23.776884,166.05,165.91,21.0957]
[1730479040767,20.0,166.0,165.87,21.1641]
[1730479040961,20.0,166.0,165.88,6.0284]
[1730479040962,23.776884,165.99,165.88,6.0284]
[1730479041161,23.776884,165.97,165.88,6.0284]
[1730479041363,27.8076806,165.92,165.87,48.9717806]
[1730479041662,51.5845646,165.97,165.91,27.8076806]
[1730479041859,27.8076806,165.96,165.91,27.8076806]
[1730479042168,27.8076806,165.93,165.9,0.6134955]
[1730479042471,27.8076806,165.91,165.9,0.6134955]
[1730479042661,23.776884,165.93,165.9,0.6134955]
[1730479043184,27.8076806,165.91,165.9,0.6134955]
[1730479043672,23.776884,165.93,165.9,0.6134955]
[1730479043673,29.803484,165.93,165.9,0.6134955]
[1730479043970,27.8076806,165.92,165.9,0.6134955]
[1730479044265,51.5845646,165.94,165.9,0.6134955]
[1730479044467,27.8076806,165.93,165.9,0.6134955]
[1730479044850,27.8076806,165.92,165.9,0.6134955]
[1730479045052,51.5845646,165.91,165.9,0.6134955]
[1730479045349,57.6118646,165.91,165.9,0.6134955]
[1730479045546,51.5845646,165.91,165.9,0.6134955]
[1730479046565,57.6118646,165.91,165.9,0.6134955]
[1730479048151,23.776884,165.9,165.83,5.0]
[1730479048354,51.5845646,165.84,165.83,5.0]
[1730479048554,27.8076806,165.86,165.83,5.0]
[1730479048763,23.776884,165.86,165.83,5.0]
[1730479048955,27.8076806,165.88,165.83,32.8076806]
[1730479049160,27.8076806,165.88,165.83,53.9133806]
[1730479049372,27.8076806,165.84,165.83,5.0]
[1730479049575,51.5845646,165.84,165.83,5.0]
[1730479049775,85.4221452,165.84,165.83,5.0]
[1730479050278,51.5845646,165.84,165.83,5.0]
[1730479050975,57.6144646,165.84,165.83,5.0]
[1730479051375,85.4221452,165.84,165.83,5.0]
[1730479051674,85.4221452,165.84,165.76,6.608]
[1730479051675,23.776884,165.81,165.71,15.086]
[1730479051981,51.5845646,165.75,165.69,6.035]
[1730479052473,51.5845646,165.75,165.7,6.0349]
[1730479052903,23.776884,165.75,165.72,6.0342]
[1730479053258,51.5845646,165.75,165.67,34.3282806]
[1730479053460,51.5845646,165.75,165.68,6.0353]
[1730479053661,51.5845646,165.75,165.69,6.0353]
[1730479053960,51.5845646,165.75,165.7,33.8425806]
[1730479054261,51.5845646,165.75,165.7,6.0349]
[1730479054461,51.5845646,165.75,165.69,15.0882]
[1730479054462,51.5845646,165.75,165.69,42.8958806]
[1730479054667,57.6176646,165.75,165.66,27.8076806]
[1730479054884,57.6176646,165.75,165.67,6.0359]
[1730479055182,51.5845646,165.75,165.7,6.0347]
[1730479055676,51.5845646,165.75,165.69,27.8076806]
[1730479055881,51.5845646,165.75,165.71,6.0342]
[1730479056460,51.5845646,165.75,165.68,42.8966806]
[1730479056764,51.5845646,165.75,165.69,6.0352]
[1730479056960,51.5845646,165.75,165.64,15.0923]
[1730479056961,57.6176646,165.75,165.64,15.0923]
[1730479057259,23.776884,165.74,165.64,15.0923]
[1730479057571,27.8076806,165.66,165.64,15.0923]
[1730479057770,27.8076806,165.7,165.64,42.8999806]
[1730479058278,6.0339,165.73,165.61,36.2296]
[1730479058279,27.8076806,165.66,165.61,33.8458806]
[1730479058477,29.810384,165.74,165.65,27.8076806]
[1730479059083,29.810384,165.74,165.61,21.1339]
[1730479059592,27.8076806,165.71,165.65,27.8076806]
[1730479059890,29.810384,165.74,165.61,30.1914]
[1730479059891,23.776884,165.7,165.66,33.8440806]
[1730479060191,51.5845646,165.7,165.66,6.0364]
[1730479060386,27.8076806,165.69,165.66,6.0364]
[1730479060690,23.776884,165.7,165.66,21.1275]
[1730479060878,51.5845646,165.7,165.66,21.1275]
[1730479061070,27.8076806,165.68,165.62,27.8076806]
[1730479061465,27.8076806,165.65,165.61,6.0381]
[1730479061687,27.8076806,165.65,165.61,15.0957]
[1730479061882,27.8076806,165.64,165.61,15.0957]
[1730479062997,27.8076806,165.65,165.59,33.8465806]
[1730479063180,27.8076806,165.64,165.59,33.8465806]
[1730479063489,23.776884,165.63,165.59,6.0389]
[1730479063690,23.776884,165.63,165.59,33.8465806]
[1730479063908,23.776884,165.64,165.59,33.8465806]
[1730479064065,23.776884,165.64,165.59,48.9440806]
[1730479064394,27.8076806,165.7,165.63,27.8076806]
[1730479064586,27.8076806,165.72,165.67,27.8076806]
[1730479064885,27.8076806,165.73,165.68,27.8076806]
[1730479065279,27.8076806,165.72,165.66,27.8076806]
[1730479065679,27.8076806,165.73,165.67,27.8076806]
[1730479065886,27.8076806,165.71,165.65,27.8076806]
[1730479066182,27.8076806,165.69,165.64,21.13]
[1730479066683,27.8076806,165.7,165.64,48.9376806]
[1730479066889,23.776884,165.69,165.64,48.9376806]
[1730479067272,27.8076806,165.71,165.65,27.8076806]
[1730479067487,27.8076806,165.72,165.66,27.8076806]
[1730479067668,23.776884,165.71,165.66,27.8076806]
[1730479067868,27.8076806,165.71,165.65,27.8076806]
[1730479068384,27.8076806,165.71,165.66,27.8076806]
[1730479068778,27.8076806,165.75,165.69,27.8076806]
[1730479068980,27.8076806,165.77,165.71,27.8076806]
[1730479069189,27.8076806,165.75,165.7,27.8076806]
[1730479069382,6.0311,165.81,165.69,15.9634]
[1730479069776,6.0311,165.81,165.7,6.2755]
[1730479070598,27.8076806,165.82,165.76,27.8076806]
[1730479071597,15.1056,165.84,165.76,27.8076806]
[1730479071598,27.8076806,165.81,165.76,27.8076806]
[1730479071803,27.8076806,165.77,165.72,27.8076806]
[1730479071974,51.5845646,165.76,165.7,49.1705806]
[1730479072283,23.776884,165.76,165.72,27.8076806]
[1730479072487,27.8076806,165.8,165.74,27.8076806]
[1730479072678,27.8076806,165.78,165.73,27.8076806]
[1730479072881,27.8076806,165.77,165.71,48.9287806]
[1730479073077,27.8076806,165.76,165.71,42.8941806]
[1730479073387,27.8076806,165.77,165.71,42.8941806]
[1730479073685,23.776884,165.76,165.72,27.8076806]
[1730479074491,6.0316,165.8,165.74,27.8076806]
[1730479074697,27.8076806,165.78,165.73,27.8076806]
[1730479074890,27.8076806,165.78,165.72,42.8932806]
[1730479075293,23.776884,165.74,165.69,27.8076806]
[1730479075486,51.5845646,165.74,165.69,27.8076806]
[1730479075791,29.810684,165.74,165.69,27.8076806]
[1730479075999,57.6177646,165.75,165.7,27.8076806]
[1730479076203,27.8076806,165.74,165.69,27.8076806]
[1730479076495,23.776884,165.73,165.69,27.8076806]
[1730479077202,23.776884,165.73,165.68,27.8076806]
[1730479077502,29.810884,165.73,165.68,27.8076806]
[1730479078383,23.776884,165.73,165.69,27.8076806]
[1730479078583,23.776884,165.74,165.69,27.8076806]
[1730479078782,27.8076806,165.73,165.68,27.8076806]
[1730479079002,27.8076806,165.71,165.66,27.8076806]
[1730479079400,27.8076806,165.71,165.67,27.8076806]
[1730479079401,23.776884,165.71,165.67,27.8076806]
[1730479079697,22.182984,165.71,165.67,27.8076806]
[1730479079884,33.8415806,165.73,165.67,27.8076806]
[1730479080083,26.2882806,165.73,165.67,27.8076806]
[1730479080798,27.8076806,165.72,165.67,27.8076806]
[1730479081003,27.8076806,165.72,165.66,27.8076806]
[1730479081584,23.776884,165.72,165.68,27.8076806]
[1730479081903,27.8076806,165.78,165.71,27.8076806]
[1730479082119,33.8378806,165.83,165.77,27.8076806]
[1730479082404,36.8886,165.88,165.8,27.8076806]
[1730479082612,5.8231,165.87,165.74,20.0]
[1730479082796,27.8458,165.88,165.73,51.2881]
[1730479083097,26.3297,165.88,165.73,51.2881]
[1730479083680,27.8076806,165.84,165.78,27.8076806]
[1730479083904,6.0302,165.84,165.79,27.8076806]
[1730479084396,23.776884,165.83,165.79,27.8076806]
[1730479084613,6.0302,165.84,165.79,27.8076806]
[1730479084994,27.8076806,165.85,165.79,27.8076806]
[1730479085198,27.8076806,165.85,165.78,27.8076806]
[1730479085390,27.8076806,165.84,165.78,27.8076806]
[1730479085701,27.8076806,165.84,165.73,30.1695]
[1730479085702,27.8076806,165.79,165.73,42.8923806]
[1730479085889,27.8076806,165.8,165.74,27.8076806]
[1730479086089,20.452084,165.79,165.74,27.8076806]
[1730479086289,27.8076806,165.84,165.69,30.1757]
[1730479086290,27.8076806,165.78,165.72,27.8076806]
[1730479086494,27.8076806,165.79,165.73,27.8076806]
[1730479086795,27.8076806,165.82,165.76,27.8076806]
[1730479086990,27.8076806,165.81,165.75,27.8076806]
[1730479087200,15.0746,165.85,165.71,21.1208]
[1730479087201,20.0,165.83,165.71,15.0865]
[1730479087582,20.0,165.83,165.71,21.1211]
[1730479088179,23.776884,165.82,165.7,6.254]
[1730479088409,27.8076806,165.78,165.72,27.8076806]
[1730479088590,23.776884,165.78,165.74,27.8076806]
[1730479088898,51.5845646,165.79,165.73,27.8076806]
[1730479089202,27.8076806,165.79,165.73,27.8076806]
[1730479089379,6.032,165.78,165.73,27.8076806]
[1730479089585,27.8076806,165.8,165.74,27.8076806]
[1730479089784,23.776884,165.79,165.74,27.8076806]
[1730479089986,51.5845646,165.79,165.73,27.8076806]
[1730479090294,6.0309,165.81,165.72,15.0849]
[1730479090295,27.8076806,165.8,165.74,27.8076806]
[1730479090689,27.8076806,165.8,165.75,27.8076806]
[1730479091402,33.8385806,165.81,165.75,48.9233806]
[1730479091582,33.8379806,165.83,165.78,27.8076806]
[1730479091786,33.8379806,165.83,165.75,21.1157]
[1730479091787,27.8076806,165.85,165.8,27.8076806]